[Event "Late-Titled-Tuesday-Blitz-April-30-2024"]
[Site "Chess.com"]
[Date "2024.04.30"]
[Round "11"]
[White "mishanick"]
[Black "Hrant_ChessMood"]
[Result "1-0"]
[WhiteElo "3137"]
[BlackElo "2968"]
[TimeControl "180+1"]
[EndTime "16:06:07 PDT"]
[Termination "mishanick won on time"]

1. d4 {[%clk 0:03:00.9]} 1... Nf6 {[%clk 0:03:00.5]} 2. c4 {[%clk 0:03:01.4]}
2... g6 {[%clk 0:03:01.1]} 3. Nc3 {[%clk 0:03:01.8]} 3... Bg7 {[%clk 0:03:01.8]}
4. e4 {[%clk 0:03:01.9]} 4... d6 {[%clk 0:03:02.4]} 5. Bd3 {[%clk 0:03:02.4]}
5... e5 {[%clk 0:02:52.8]} 6. d5 {[%clk 0:03:02]} 6... Na6 {[%clk 0:02:52.5]} 7.
Nge2 {[%clk 0:03:01.6]} 7... Nc5 {[%clk 0:02:52.7]} 8. Bc2 {[%clk 0:03:02]} 8...
a5 {[%clk 0:02:52.9]} 9. f3 {[%clk 0:03:01.9]} 9... h5 {[%clk 0:02:47.7]} 10.
Be3 {[%clk 0:03:02.1]} 10... h4 {[%clk 0:02:45.1]} 11. Qd2 {[%clk 0:03:00.3]}
11... Qe7 {[%clk 0:02:31.2]} 12. O-O-O {[%clk 0:02:59.1]} 12... Bd7 {[%clk
0:02:31.4]} 13. Kb1 {[%clk 0:02:58.6]} 13... Qf8 {[%clk 0:02:19.2]} 14. g3
{[%clk 0:02:55.3]} 14... Bh6 {[%clk 0:02:17.2]} 15. f4 {[%clk 0:02:55.4]} 15...
Ng4 {[%clk 0:02:12.8]} 16. Bg1 {[%clk 0:02:43.8]} 16... h3 {[%clk 0:02:03.3]}
17. Nb5 {[%clk 0:02:28.7]} 17... Bxb5 {[%clk 0:01:51.6]} 18. cxb5 {[%clk
0:02:29.6]} 18... b6 {[%clk 0:01:52.4]} 19. Nc3 {[%clk 0:02:22.7]} 19... Qe7
{[%clk 0:01:51.8]} 20. Qe2 {[%clk 0:02:20.3]} 20... Nf6 {[%clk 0:01:47.6]} 21.
fxe5 {[%clk 0:02:20.2]} 21... Nfd7 {[%clk 0:01:36.6]} 22. e6 {[%clk 0:02:07.4]}
22... Ne5 {[%clk 0:01:32.8]} 23. Bd4 {[%clk 0:01:57]} 23... Bg7 {[%clk
0:01:32.3]} 24. exf7+ {[%clk 0:01:43.9]} 24... Qxf7 {[%clk 0:01:29.8]} 25. Rhf1
{[%clk 0:01:44.1]} 25... Qd7 {[%clk 0:01:26.2]} 26. Bxc5 {[%clk 0:01:40.7]}
26... bxc5 {[%clk 0:01:21.9]} 27. b6 {[%clk 0:01:40.9]} 27... Ke7 {[%clk
0:01:00.3]} 28. Ba4 {[%clk 0:01:35.8]} 28... Qc8 {[%clk 0:01:00.6]} 29. Qd2
{[%clk 0:00:53.7]} 29... Bh6 {[%clk 0:01:00.5]} 30. Qf2 {[%clk 0:00:53.7]} 30...
Bg7 {[%clk 0:01:00.9]} 31. Qf4 {[%clk 0:00:52.4]} 31... Rh5 {[%clk 0:00:50.3]}
32. Bc6 {[%clk 0:00:46.1]} 32... Rb8 {[%clk 0:00:49.8]} 33. g4 {[%clk
0:00:30.3]} 33... Qxg4 {[%clk 0:00:28]} 34. bxc7 {[%clk 0:00:27.9]} 34... Rc8
{[%clk 0:00:27.5]} 35. Nb5 {[%clk 0:00:26]} 35... Qxf4 {[%clk 0:00:20.2]} 36.
Rxf4 {[%clk 0:00:25.9]} 36... Nxc6 {[%clk 0:00:19.7]} 37. dxc6 {[%clk 0:00:26]}
37... Be5 {[%clk 0:00:20.6]} 38. Rf2 {[%clk 0:00:25.9]} 38... g5 {[%clk
0:00:20.5]} 39. Rdf1 {[%clk 0:00:19.9]} 39... Bf4 {[%clk 0:00:13.2]} 40. e5
{[%clk 0:00:20.4]} 40... dxe5 {[%clk 0:00:11.8]} 41. Rd1 {[%clk 0:00:21.1]}
41... Rhh8 {[%clk 0:00:11.1]} 42. Rd7+ {[%clk 0:00:17.1]} 42... Ke6 {[%clk
0:00:11.5]} 43. Na7 {[%clk 0:00:16.4]} 43... e4 {[%clk 0:00:11.7]} 44. Nxc8
{[%clk 0:00:16.5]} 44... Rxc8 {[%clk 0:00:12.6]} 45. Re2 {[%clk 0:00:17.2]}
45... e3 {[%clk 0:00:12.4]} 46. Kc2 {[%clk 0:00:16.7]} 46... g4 {[%clk
0:00:11.8]} 47. Kd3 {[%clk 0:00:16.9]} 47... Kf5 {[%clk 0:00:11.5]} 48. Rf7+
{[%clk 0:00:16.4]} 48... Kg5 {[%clk 0:00:11.9]} 49. Kc4 {[%clk 0:00:12.3]} 49...
Bxc7 {[%clk 0:00:11.5]} 50. Kxc5 {[%clk 0:00:12.6]} 50... Bf4 {[%clk 0:00:09.6]}
51. Kb6 {[%clk 0:00:11.9]} 51... Rb8+ {[%clk 0:00:09.6]} 52. Ka7 {[%clk
0:00:12.2]} 52... Rc8 {[%clk 0:00:09.6]} 53. Kb7 {[%clk 0:00:12]} 53... Rb8+
{[%clk 0:00:10.2]} 54. Ka6 {[%clk 0:00:12.2]} 54... Rc8 {[%clk 0:00:10.7]} 55.
Kb6 {[%clk 0:00:12.8]} 55... Rb8+ {[%clk 0:00:11.1]} 56. Kxa5 {[%clk 0:00:13.2]}
56... Ra8+ {[%clk 0:00:10.6]} 57. Kb6 {[%clk 0:00:13.5]} 57... Rb8+ {[%clk
0:00:11.2]} 58. Rb7 {[%clk 0:00:13.3]} 58... Rc8 {[%clk 0:00:11.8]} 59. Rg7+
{[%clk 0:00:13.5]} 59... Kf5 {[%clk 0:00:11.8]} 60. c7 {[%clk 0:00:14]} 60...
Ke4 {[%clk 0:00:10]} 61. Rc2 {[%clk 0:00:09.2]} 61... Kf3 {[%clk 0:00:09.2]} 62.
Re7 {[%clk 0:00:09.4]} 62... Rf8 {[%clk 0:00:07]} 63. c8=Q {[%clk 0:00:09]}
63... Rxc8 {[%clk 0:00:07.4]} 64. Rxc8 {[%clk 0:00:09.9]} 64... Bxh2 {[%clk
0:00:07.7]} 65. Rf8+ {[%clk 0:00:07.4]} 65... Kg2 {[%clk 0:00:08.1]} 66. Kb5
{[%clk 0:00:06.6]} 66... Bg1 {[%clk 0:00:07.4]} 67. a4 {[%clk 0:00:05.9]} 67...
h2 {[%clk 0:00:07.1]} 68. Rh8 {[%clk 0:00:06.3]} 68... g3 {[%clk 0:00:07.3]} 69.
a5 {[%clk 0:00:06.5]} 69... Kf3 {[%clk 0:00:06.6]} 70. a6 {[%clk 0:00:06.8]}
70... g2 {[%clk 0:00:06]} 71. a7 {[%clk 0:00:06.6]} 71... h1=Q {[%clk
0:00:06.1]} 72. a8=Q+ {[%clk 0:00:07.2]} 72... Ke2 {[%clk 0:00:06.8]} 73. Rxh1
{[%clk 0:00:07.6]} 1-0

[Event "Late-Titled-Tuesday-Blitz-April-30-2024"]
[Site "Chess.com"]
[Date "2024.04.30"]
[Round "11"]
[White "Njal28"]
[Black "MITerryble"]
[Result "1-0"]
[WhiteElo "3098"]
[BlackElo "3037"]
[TimeControl "180+1"]
[EndTime "16:06:09 PDT"]
[Termination "Njal28 won by resignation"]

1. e4 {[%clk 0:03:00.9]} 1... e6 {[%clk 0:03:00.1]} 2. d4 {[%clk 0:03:01]} 2...
d5 {[%clk 0:03:00.7]} 3. exd5 {[%clk 0:03:00]} 3... exd5 {[%clk 0:03:01.6]} 4.
Nf3 {[%clk 0:03:00]} 4... Nc6 {[%clk 0:03:01.9]} 5. Bb5 {[%clk 0:02:56.3]} 5...
Ne7 {[%clk 0:03:00.8]} 6. O-O {[%clk 0:02:52.1]} 6... a6 {[%clk 0:03:00.3]} 7.
Ba4 {[%clk 0:02:43]} 7... Bg4 {[%clk 0:02:56.5]} 8. c3 {[%clk 0:02:40.1]} 8...
b5 {[%clk 0:02:50.8]} 9. Bc2 {[%clk 0:02:39.8]} 9... Ng6 {[%clk 0:02:49.6]} 10.
h3 {[%clk 0:02:38.1]} 10... Bd7 {[%clk 0:02:40.7]} 11. Re1+ {[%clk 0:02:35.9]}
11... Be7 {[%clk 0:02:40.8]} 12. Ng5 {[%clk 0:02:23.8]} 12... O-O {[%clk
0:02:31.1]} 13. Qh5 {[%clk 0:02:21.5]} 13... Bxg5 {[%clk 0:02:31.3]} 14. Bxg5
{[%clk 0:02:22.4]} 14... Qc8 {[%clk 0:02:29.2]} 15. Qf3 {[%clk 0:01:54.9]} 15...
Be6 {[%clk 0:02:16.5]} 16. Nd2 {[%clk 0:01:51.8]} 16... Na5 {[%clk 0:02:00]} 17.
Nb3 {[%clk 0:01:40.3]} 17... Nb7 {[%clk 0:01:46.9]} 18. Qg3 {[%clk 0:01:36.7]}
18... Nd6 {[%clk 0:01:38.5]} 19. Nc5 {[%clk 0:01:34.2]} 19... Bf5 {[%clk
0:01:38.7]} 20. Bb3 {[%clk 0:01:29.2]} 20... Nc4 {[%clk 0:01:36.4]} 21. Re2
{[%clk 0:01:21]} 21... h6 {[%clk 0:01:20.3]} 22. Bf4 {[%clk 0:01:20.2]} 22... c6
{[%clk 0:01:14.9]} 23. Rae1 {[%clk 0:01:20]} 23... Kh7 {[%clk 0:01:07.1]} 24.
Bc1 {[%clk 0:01:12.8]} 24... a5 {[%clk 0:01:05.2]} 25. Bd1 {[%clk 0:01:09.6]}
25... Qb8 {[%clk 0:01:00.4]} 26. Qxb8 {[%clk 0:01:00.9]} 26... Raxb8 {[%clk
0:01:01.3]} 27. b3 {[%clk 0:01:00.3]} 27... Nd6 {[%clk 0:00:57.5]} 28. g4 {[%clk
0:00:58.9]} 28... Bc8 {[%clk 0:00:36.5]} 29. Bc2 {[%clk 0:00:58.9]} 29... Kg8
{[%clk 0:00:31.1]} 30. f3 {[%clk 0:00:49.6]} 30... b4 {[%clk 0:00:29.6]} 31.
cxb4 {[%clk 0:00:44.6]} 31... axb4 {[%clk 0:00:30.5]} 32. Bd3 {[%clk 0:00:33.8]}
32... Ra8 {[%clk 0:00:24.6]} 33. Kg2 {[%clk 0:00:18.8]} 33... Nb7 {[%clk
0:00:24.8]} 34. Nxb7 {[%clk 0:00:18]} 34... Bxb7 {[%clk 0:00:25.7]} 35. Kg3
{[%clk 0:00:16.7]} 35... Ba6 {[%clk 0:00:23.5]} 36. Bxa6 {[%clk 0:00:17.4]}
36... Rxa6 {[%clk 0:00:24.4]} 37. h4 {[%clk 0:00:18.1]} 37... Rfa8 {[%clk
0:00:24.3]} 38. h5 {[%clk 0:00:18]} 38... Nf8 {[%clk 0:00:24.8]} 39. Bd2 {[%clk
0:00:17.2]} 39... Rxa2 {[%clk 0:00:24]} 40. Bxb4 {[%clk 0:00:17.6]} 40... Rxe2
{[%clk 0:00:24.9]} 41. Rxe2 {[%clk 0:00:18.2]} 41... Ne6 {[%clk 0:00:23.2]} 42.
Bc5 {[%clk 0:00:17.7]} 42... Rb8 {[%clk 0:00:20.6]} 43. b4 {[%clk 0:00:17.1]}
43... Nxc5 {[%clk 0:00:12.6]} 44. bxc5 {[%clk 0:00:17]} 44... Rb4 {[%clk
0:00:12.2]} 45. Re8+ {[%clk 0:00:13.3]} 45... Kh7 {[%clk 0:00:12.7]} 46. Rc8
{[%clk 0:00:11.1]} 46... Rxd4 {[%clk 0:00:12.8]} 47. Rxc6 {[%clk 0:00:11.9]}
47... Rc4 {[%clk 0:00:13.7]} 48. Rc7 {[%clk 0:00:10.8]} 48... Kg8 {[%clk
0:00:11.6]} 49. Rc8+ {[%clk 0:00:10.7]} 49... Kh7 {[%clk 0:00:11.6]} 50. c6
{[%clk 0:00:11.2]} 50... g6 {[%clk 0:00:09.3]} 51. Kf2 {[%clk 0:00:05.2]} 51...
gxh5 {[%clk 0:00:08.9]} 52. gxh5 {[%clk 0:00:06.1]} 52... d4 {[%clk 0:00:08.2]}
53. Ke2 {[%clk 0:00:06.6]} 53... Rc3 {[%clk 0:00:08.6]} 54. Kd2 {[%clk
0:00:04.2]} 54... Kg7 {[%clk 0:00:09.1]} 55. c7 {[%clk 0:00:02.9]} 55... Kh7
{[%clk 0:00:06.5]} 56. f4 {[%clk 0:00:03.4]} 56... Kg7 {[%clk 0:00:06.9]} 57. f5
{[%clk 0:00:03.7]} 57... Kf6 {[%clk 0:00:06.8]} 58. Rh8 {[%clk 0:00:01.5]} 58...
Rxc7 {[%clk 0:00:04.6]} 59. Rxh6+ {[%clk 0:00:02.2]} 59... Kxf5 {[%clk
0:00:04.6]} 60. Ra6 {[%clk 0:00:02.9]} 60... Rc3 {[%clk 0:00:04.2]} 61. h6
{[%clk 0:00:03.2]} 61... Rh3 {[%clk 0:00:04.7]} 62. Rd6 {[%clk 0:00:03.6]} 62...
Ke5 {[%clk 0:00:04.9]} 63. Rd7 {[%clk 0:00:03.1]} 63... f5 {[%clk 0:00:04.3]}
64. h7 {[%clk 0:00:03.5]} 64... Ke4 {[%clk 0:00:04.2]} 65. Ke2 {[%clk
0:00:03.4]} 65... Ke5 {[%clk 0:00:04]} 66. Kf2 {[%clk 0:00:03.4]} 66... f4
{[%clk 0:00:04.5]} 67. Kg2 {[%clk 0:00:03.2]} 67... Rh6 {[%clk 0:00:04.8]} 68.
Kf3 {[%clk 0:00:03.6]} 68... d3 {[%clk 0:00:04.6]} 69. Rxd3 {[%clk 0:00:02.2]}
69... Rxh7 {[%clk 0:00:04.5]} 70. Kf2 {[%clk 0:00:02.3]} 70... Rh2+ {[%clk
0:00:04.5]} 71. Kf1 {[%clk 0:00:02.6]} 71... Ra2 {[%clk 0:00:04.6]} 72. Rb3
{[%clk 0:00:02.7]} 72... Ke4 {[%clk 0:00:05]} 73. Rc3 {[%clk 0:00:03]} 73... Rb2
{[%clk 0:00:05.2]} 74. Ra3 {[%clk 0:00:03.2]} 74... Rc2 {[%clk 0:00:05.2]} 75.
Rb3 {[%clk 0:00:03.6]} 75... Kf5 {[%clk 0:00:05.8]} 76. Ra3 {[%clk 0:00:04]}
76... Kg4 {[%clk 0:00:06.3]} 77. Rb3 {[%clk 0:00:04.5]} 77... Rb2 {[%clk
0:00:06.6]} 78. Rxb2 {[%clk 0:00:04.6]} 78... Kg3 {[%clk 0:00:06.4]} 79. Rb3+
{[%clk 0:00:04.5]} 79... f3 {[%clk 0:00:06.3]} 80. Ra3 {[%clk 0:00:05.4]} 80...
Kf4 {[%clk 0:00:06.6]} 81. Kf2 {[%clk 0:00:06.3]} 81... Ke4 {[%clk 0:00:07]} 82.
Rxf3 {[%clk 0:00:07.2]} 82... Kd5 {[%clk 0:00:07.6]} 83. Re3 {[%clk 0:00:08.1]}
83... Kd4 {[%clk 0:00:08]} 84. Ke2 {[%clk 0:00:09]} 84... Kc5 {[%clk 0:00:08.4]}
85. Rd3 {[%clk 0:00:09.9]} 1-0

[Event "Late-Titled-Tuesday-Blitz-April-30-2024"]
[Site "Chess.com"]
[Date "2024.04.30"]
[Round "11"]
[White "Romkachess"]
[Black "dosto07"]
[Result "0-1"]
[WhiteElo "2610"]
[BlackElo "2515"]
[TimeControl "180+1"]
[EndTime "16:06:15 PDT"]
[Termination "dosto07 won by checkmate"]

1. e4 {[%clk 0:02:50.1]} 1... e5 {[%clk 0:02:59.6]} 2. d4 {[%clk 0:02:42.9]}
2... exd4 {[%clk 0:02:59.2]} 3. Qxd4 {[%clk 0:02:41.6]} 3... Nc6 {[%clk
0:02:59.4]} 4. Qe3 {[%clk 0:02:41.9]} 4... Nf6 {[%clk 0:03:00.2]} 5. Nc3 {[%clk
0:02:41.5]} 5... Be7 {[%clk 0:03:00.4]} 6. Bd2 {[%clk 0:02:40.6]} 6... d5 {[%clk
0:03:00.1]} 7. exd5 {[%clk 0:02:39.1]} 7... Nxd5 {[%clk 0:03:00.6]} 8. Nxd5
{[%clk 0:02:40]} 8... Qxd5 {[%clk 0:03:00.7]} 9. c4 {[%clk 0:02:33.3]} 9... Qc5
{[%clk 0:03:00.1]} 10. Nf3 {[%clk 0:02:28.8]} 10... Bf5 {[%clk 0:02:57]} 11. a3
{[%clk 0:02:25.9]} 11... O-O-O {[%clk 0:02:49]} 12. Qxc5 {[%clk 0:02:25.7]}
12... Bxc5 {[%clk 0:02:48.7]} 13. b4 {[%clk 0:02:26.6]} 13... Nd4 {[%clk
0:02:32.9]} 14. Rc1 {[%clk 0:01:33.2]} 14... Rhe8+ {[%clk 0:02:08.9]} 15. Kd1
{[%clk 0:01:19.1]} 15... Bg4 {[%clk 0:02:05.3]} 16. bxc5 {[%clk 0:00:49.4]}
16... Nxf3 {[%clk 0:02:05.1]} 17. gxf3 {[%clk 0:00:49.1]} 17... Bxf3+ {[%clk
0:02:03.7]} 18. Kc2 {[%clk 0:00:49]} 18... Be4+ {[%clk 0:01:53.1]} 19. Kc3
{[%clk 0:00:48.5]} 19... Bxh1 {[%clk 0:01:49.5]} 20. Bh3+ {[%clk 0:00:46.6]}
20... Kb8 {[%clk 0:01:48.9]} 21. Rxh1 {[%clk 0:00:46.6]} 21... Re2 {[%clk
0:01:42.5]} 22. Be3 {[%clk 0:00:38]} 22... Ra2 {[%clk 0:01:18.3]} 23. Kb3 {[%clk
0:00:34.8]} 23... Re2 {[%clk 0:01:16.5]} 24. c6 {[%clk 0:00:30.4]} 24... bxc6
{[%clk 0:01:10.5]} 25. Ka4 {[%clk 0:00:19.2]} 25... Rb2 {[%clk 0:01:02.3]} 26.
Bc5 {[%clk 0:00:11.8]} 26... Kb7 {[%clk 0:00:59.4]} 27. Rg1 {[%clk 0:00:09]}
27... g6 {[%clk 0:00:57.6]} 28. Re1 {[%clk 0:00:09.4]} 28... Rd3 {[%clk
0:00:53.1]} 29. Bg2 {[%clk 0:00:04.4]} 29... Rc3 {[%clk 0:00:41.5]} 30. Re4
{[%clk 0:00:03.7]} 30... Rbc2 {[%clk 0:00:40.8]} 31. Bb4 {[%clk 0:00:03.6]}
31... Rxc4 {[%clk 0:00:40]} 32. Rxc4 {[%clk 0:00:04.5]} 32... Rxc4 {[%clk
0:00:39.8]} 33. Kb3 {[%clk 0:00:05.4]} 33... Rg4 {[%clk 0:00:37.8]} 34. Bf3
{[%clk 0:00:04.8]} 34... Rf4 {[%clk 0:00:37.2]} 35. Bd1 {[%clk 0:00:02.7]} 35...
Rxf2 {[%clk 0:00:37.3]} 36. h4 {[%clk 0:00:02.4]} 36... f5 {[%clk 0:00:37.2]}
37. Bc2 {[%clk 0:00:02]} 37... Rf3+ {[%clk 0:00:36.1]} 38. Kb2 {[%clk
0:00:02.2]} 38... f4 {[%clk 0:00:33]} 39. Be7 {[%clk 0:00:02.1]} 39... Rf2
{[%clk 0:00:31.5]} 40. Kc3 {[%clk 0:00:01.5]} 40... f3 {[%clk 0:00:31.3]} 41.
Bd3 {[%clk 0:00:02]} 41... Ra2 {[%clk 0:00:29.7]} 42. Bc5 {[%clk 0:00:02.5]}
42... Rh2 {[%clk 0:00:27.7]} 43. Kc4 {[%clk 0:00:01.8]} 43... Rxh4+ {[%clk
0:00:26.9]} 44. Kc3 {[%clk 0:00:02.7]} 44... g5 {[%clk 0:00:25.6]} 45. Kd2
{[%clk 0:00:03]} 45... g4 {[%clk 0:00:25.5]} 46. Ke1 {[%clk 0:00:03.6]} 46...
Rh2 {[%clk 0:00:25.4]} 47. Kf1 {[%clk 0:00:02.7]} 47... h5 {[%clk 0:00:25.3]}
48. Kg1 {[%clk 0:00:03]} 48... Rd2 {[%clk 0:00:25.4]} 49. Be4 {[%clk 0:00:02.8]}
49... Re2 {[%clk 0:00:23.1]} 50. Bd3 {[%clk 0:00:02.7]} 50... Rd2 {[%clk
0:00:22.4]} 51. Bg6 {[%clk 0:00:02.8]} 51... Rd5 {[%clk 0:00:22.2]} 52. Bb4
{[%clk 0:00:02.6]} 52... a5 {[%clk 0:00:21]} 53. Bc3 {[%clk 0:00:02.5]} 53...
Kb6 {[%clk 0:00:21]} 54. Kf2 {[%clk 0:00:02.4]} 54... Kb5 {[%clk 0:00:20.5]} 55.
a4+ {[%clk 0:00:02.4]} 55... Kxa4 {[%clk 0:00:19.3]} 56. Bh8 {[%clk 0:00:03.3]}
56... Kb5 {[%clk 0:00:17.3]} 57. Bf7 {[%clk 0:00:03.9]} 57... Rd2+ {[%clk
0:00:16.5]} 58. Ke3 {[%clk 0:00:03.8]} 58... Rg2 {[%clk 0:00:16.8]} 59. Bg6
{[%clk 0:00:03.7]} 59... c5 {[%clk 0:00:15.4]} 60. Bd3+ {[%clk 0:00:04.6]} 60...
c4 {[%clk 0:00:15.7]} 61. Bf1 {[%clk 0:00:04.8]} 61... Rg1 {[%clk 0:00:15.9]}
62. Kf2 {[%clk 0:00:05.2]} 62... Rh1 {[%clk 0:00:15.8]} 63. Bd4 {[%clk
0:00:04.8]} 63... Rh2+ {[%clk 0:00:15.3]} 64. Ke3 {[%clk 0:00:05.1]} 64... Ra2
{[%clk 0:00:14.7]} 65. Be5 {[%clk 0:00:05.3]} 65... Ra3+ {[%clk 0:00:13.7]} 66.
Kd4 {[%clk 0:00:05.3]} 66... Ra1 {[%clk 0:00:12.9]} 67. Bxc4+ {[%clk 0:00:05.7]}
67... Kb6 {[%clk 0:00:12.1]} 68. Ke4 {[%clk 0:00:05]} 68... Rc1 {[%clk 0:00:11]}
69. Bd4+ {[%clk 0:00:04.6]} 69... c5 {[%clk 0:00:10.2]} 70. Bd3 {[%clk
0:00:05.5]} 70... Re1+ {[%clk 0:00:08.1]} 71. Kf4 {[%clk 0:00:05.4]} 71... a4
{[%clk 0:00:06.7]} 72. Bf2 {[%clk 0:00:05.4]} 72... Rd1 {[%clk 0:00:05.9]} 73.
Bc2 {[%clk 0:00:05.4]} 73... Rd2 {[%clk 0:00:05.2]} 74. Bxa4 {[%clk 0:00:05]}
74... Rxf2 {[%clk 0:00:05]} 75. Kg3 {[%clk 0:00:05.4]} 75... Rg2+ {[%clk
0:00:05.3]} 76. Kf4 {[%clk 0:00:05.3]} 76... Ka5 {[%clk 0:00:05.7]} 77. Bb3
{[%clk 0:00:05.2]} 77... Kb4 {[%clk 0:00:06.1]} 78. Bc4 {[%clk 0:00:06.1]} 78...
Kxc4 {[%clk 0:00:06]} 79. Ke3 {[%clk 0:00:07]} 79... f2 {[%clk 0:00:05.7]} 80.
Ke2 {[%clk 0:00:07.9]} 80... g3 {[%clk 0:00:06.1]} 81. Kf3 {[%clk 0:00:08.2]}
81... Rg1 {[%clk 0:00:06.8]} 82. Kf4 {[%clk 0:00:08.5]} 82... f1=Q+ {[%clk
0:00:07.3]} 83. Ke4 {[%clk 0:00:09.4]} 83... Qf2 {[%clk 0:00:06.4]} 84. Ke5
{[%clk 0:00:10.3]} 84... Re1+ {[%clk 0:00:06.8]} 85. Kd6 {[%clk 0:00:11.1]}
85... Qd4+ {[%clk 0:00:06.9]} 86. Kc6 {[%clk 0:00:12]} 86... Re6+ {[%clk
0:00:06.9]} 87. Kb7 {[%clk 0:00:12.9]} 87... Qd7+ {[%clk 0:00:06.8]} 88. Kb8
{[%clk 0:00:13]} 88... Re8# {[%clk 0:00:07.4]} 0-1

[Event "Late-Titled-Tuesday-Blitz-April-30-2024"]
[Site "Chess.com"]
[Date "2024.04.30"]
[Round "11"]
[White "mbojan"]
[Black "albi1999"]
[Result "1-0"]
[WhiteElo "2937"]
[BlackElo "2667"]
[TimeControl "180+1"]
[EndTime "16:06:32 PDT"]
[Termination "mbojan won by checkmate"]

1. e4 {[%clk 0:03:00.9]} 1... c5 {[%clk 0:02:49.6]} 2. Nf3 {[%clk 0:03:00.8]}
2... a6 {[%clk 0:02:47.8]} 3. c3 {[%clk 0:03:00]} 3... d5 {[%clk 0:02:46.2]} 4.
exd5 {[%clk 0:02:59.6]} 4... Nf6 {[%clk 0:02:46.8]} 5. d4 {[%clk 0:02:56.3]}
5... cxd4 {[%clk 0:02:47.7]} 6. cxd4 {[%clk 0:02:56.8]} 6... Nxd5 {[%clk
0:02:48]} 7. Nc3 {[%clk 0:02:57.2]} 7... Nc6 {[%clk 0:02:48.2]} 8. Bc4 {[%clk
0:02:55.4]} 8... e6 {[%clk 0:02:47.5]} 9. O-O {[%clk 0:02:52.2]} 9... Be7 {[%clk
0:02:45.9]} 10. Re1 {[%clk 0:02:42.5]} 10... O-O {[%clk 0:02:45.7]} 11. a3
{[%clk 0:02:35.6]} 11... b6 {[%clk 0:02:41.5]} 12. Bd2 {[%clk 0:02:09.5]} 12...
Bb7 {[%clk 0:02:39.7]} 13. Nxd5 {[%clk 0:02:09.5]} 13... exd5 {[%clk 0:02:39]}
14. Bd3 {[%clk 0:02:10]} 14... Bf6 {[%clk 0:02:37.1]} 15. Bc3 {[%clk 0:01:50.6]}
15... Qd7 {[%clk 0:02:23]} 16. h3 {[%clk 0:01:46.6]} 16... Rfe8 {[%clk
0:02:21.9]} 17. Qd2 {[%clk 0:01:46.9]} 17... Rxe1+ {[%clk 0:02:07.8]} 18. Rxe1
{[%clk 0:01:47.8]} 18... Re8 {[%clk 0:02:07.8]} 19. Re3 {[%clk 0:01:47.6]} 19...
Rxe3 {[%clk 0:02:05.2]} 20. Qxe3 {[%clk 0:01:48.1]} 20... g6 {[%clk 0:01:41.5]}
21. Bc2 {[%clk 0:01:45.8]} 21... b5 {[%clk 0:01:25.3]} 22. Qf4 {[%clk
0:01:41.2]} 22... Bg7 {[%clk 0:01:17.1]} 23. Bd3 {[%clk 0:01:18.9]} 23... Qe7
{[%clk 0:01:14.9]} 24. h4 {[%clk 0:01:16.4]} 24... b4 {[%clk 0:01:04.3]} 25.
axb4 {[%clk 0:01:14.3]} 25... Nxb4 {[%clk 0:01:05.2]} 26. Bb1 {[%clk 0:00:37.9]}
26... Bf8 {[%clk 0:00:43.8]} 27. h5 {[%clk 0:00:37.8]} 27... Qd6 {[%clk
0:00:35.5]} 28. Ne5 {[%clk 0:00:38.1]} 28... Qe6 {[%clk 0:00:13.3]} 29. g4
{[%clk 0:00:38.4]} 29... Nc6 {[%clk 0:00:09.5]} 30. Nd3 {[%clk 0:00:37.6]} 30...
Bd6 {[%clk 0:00:09.1]} 31. Qf3 {[%clk 0:00:38.1]} 31... gxh5 {[%clk 0:00:07.9]}
32. gxh5 {[%clk 0:00:36.9]} 32... Qe4 {[%clk 0:00:08]} 33. Qxe4 {[%clk
0:00:24.4]} 33... dxe4 {[%clk 0:00:08.9]} 34. Nc5 {[%clk 0:00:25.1]} 34... Bxc5
{[%clk 0:00:09.4]} 35. dxc5 {[%clk 0:00:26]} 35... f5 {[%clk 0:00:09.9]} 36.
Ba2+ {[%clk 0:00:20.5]} 36... Kf8 {[%clk 0:00:10.4]} 37. Kh2 {[%clk 0:00:13.3]}
37... Ne7 {[%clk 0:00:10.4]} 38. Kg3 {[%clk 0:00:08.3]} 38... Bd5 {[%clk
0:00:08.5]} 39. Bb1 {[%clk 0:00:07]} 39... Bf7 {[%clk 0:00:08.7]} 40. h6 {[%clk
0:00:05.5]} 40... Nd5 {[%clk 0:00:08.2]} 41. Bg7+ {[%clk 0:00:05.3]} 41... Ke8
{[%clk 0:00:08]} 42. f3 {[%clk 0:00:05]} 42... Bg6 {[%clk 0:00:07]} 43. fxe4
{[%clk 0:00:03.5]} 43... fxe4 {[%clk 0:00:07.6]} 44. Ba2 {[%clk 0:00:03.9]}
44... Bf7 {[%clk 0:00:06.7]} 45. Kf2 {[%clk 0:00:03]} 45... Kd7 {[%clk
0:00:06.9]} 46. Bb1 {[%clk 0:00:02.6]} 46... Bg6 {[%clk 0:00:06.5]} 47. Ke1
{[%clk 0:00:03.2]} 47... Kc6 {[%clk 0:00:06.6]} 48. Bf8 {[%clk 0:00:02.9]} 48...
Nb4 {[%clk 0:00:05.6]} 49. Ke2 {[%clk 0:00:02.7]} 49... Nd3 {[%clk 0:00:05.9]}
50. Ke3 {[%clk 0:00:01.7]} 50... Nxc5 {[%clk 0:00:06.1]} 51. Ba2 {[%clk
0:00:02.3]} 51... Nd3 {[%clk 0:00:05.1]} 52. Bg7 {[%clk 0:00:01.7]} 52... Kc5
{[%clk 0:00:04.6]} 53. Bg8 {[%clk 0:00:01.6]} 53... Kb4 {[%clk 0:00:04.2]} 54.
Be6 {[%clk 0:00:01.7]} 54... a5 {[%clk 0:00:04]} 55. Bf8+ {[%clk 0:00:01.6]}
55... Kb5 {[%clk 0:00:03.8]} 56. b3 {[%clk 0:00:01.1]} 56... Nc5 {[%clk
0:00:03.3]} 57. Bc4+ {[%clk 0:00:01.7]} 57... Kb6 {[%clk 0:00:03.3]} 58. Be7
{[%clk 0:00:02.2]} 58... Kc6 {[%clk 0:00:03.3]} 59. Bd8 {[%clk 0:00:02.2]} 59...
Nb7 {[%clk 0:00:03.1]} 60. Bf6 {[%clk 0:00:01.9]} 60... Nd6 {[%clk 0:00:03.5]}
61. Be6 {[%clk 0:00:01.5]} 61... Nf5+ {[%clk 0:00:03.6]} 62. Kf4 {[%clk
0:00:01.6]} 62... Nxh6 {[%clk 0:00:03.7]} 63. Be5 {[%clk 0:00:01.1]} 63... Nf7
{[%clk 0:00:03.6]} 64. Bf6 {[%clk 0:00:01.4]} 64... Nd6 {[%clk 0:00:03.6]} 65.
Bg8 {[%clk 0:00:01.3]} 65... Nb7 {[%clk 0:00:03.7]} 66. Bc4 {[%clk 0:00:00.9]}
66... Nc5 {[%clk 0:00:03.9]} 67. Bg7 {[%clk 0:00:00.8]} 67... Na6 {[%clk
0:00:02.6]} 68. Bf8 {[%clk 0:00:01.2]} 68... Nb4 {[%clk 0:00:02.9]} 69. Bg7
{[%clk 0:00:01.4]} 69... Nd3+ {[%clk 0:00:03.2]} 70. Ke3 {[%clk 0:00:02]} 70...
Nc5 {[%clk 0:00:02.8]} 71. Kd4 {[%clk 0:00:02.3]} 71... Nb7 {[%clk 0:00:02.3]}
72. Bd5+ {[%clk 0:00:02.7]} 72... Kb6 {[%clk 0:00:02.6]} 73. Be5 {[%clk
0:00:02.6]} 73... Nc5 {[%clk 0:00:02.6]} 74. Bd6 {[%clk 0:00:03]} 74... Nd7
{[%clk 0:00:02.5]} 75. Be6 {[%clk 0:00:03.5]} 75... Nb8 {[%clk 0:00:01.6]} 76.
Bxb8 {[%clk 0:00:03.7]} 76... Kc6 {[%clk 0:00:01.7]} 77. Bf4 {[%clk 0:00:04]}
77... Kb5 {[%clk 0:00:02]} 78. Bd6 {[%clk 0:00:03.3]} 78... Kc6 {[%clk
0:00:02.1]} 79. Be7 {[%clk 0:00:03.3]} 79... Kb5 {[%clk 0:00:01.6]} 80. Bd7+
{[%clk 0:00:03.4]} 80... Kb6 {[%clk 0:00:02.4]} 81. Bd8+ {[%clk 0:00:03.7]}
81... Ka6 {[%clk 0:00:02.1]} 82. Kc5 {[%clk 0:00:03.7]} 82... Bf7 {[%clk
0:00:02.6]} 83. Bc8+ {[%clk 0:00:03.6]} 83... Ka7 {[%clk 0:00:02.8]} 84. Bxa5
{[%clk 0:00:04.1]} 84... Bxb3 {[%clk 0:00:03.1]} 85. Bb6+ {[%clk 0:00:03.8]}
85... Ka8 {[%clk 0:00:03.1]} 86. Kc6 {[%clk 0:00:04.2]} 86... Ba4+ {[%clk
0:00:03.1]} 87. Kc7 {[%clk 0:00:04.8]} 87... Be8 {[%clk 0:00:02.8]} 88. Bb7#
{[%clk 0:00:05.2]} 1-0